bitfinex/quotes_SOLUSD_20241229
["timestamp","ask_amount","ask_price","bid_price","bid_amount"]
[1735452482827,9.03577748,195.07,195.0,10.17607685]
[1735452483824,8.07445879,195.07,195.0,10.17607685]
[1735452487631,8.07445879,195.07,195.01,10.17607685]
[1735452488528,8.07445879,195.07,195.02,10.17607685]
[1735452489728,8.07445879,195.08,195.04,10.17607685]
[1735452490436,8.07445879,195.1,195.04,10.17607685]
[1735452492938,7.80325879,195.1,195.04,10.17607685]
[1735452493434,7.80325879,195.1,195.03,10.17607685]
[1735452494637,7.80325879,195.1,195.03,89.26539589]
[1735452494841,7.80325879,195.1,195.03,79.08931904]
[1735452496355,0.96110047,195.09,195.03,79.08931904]
[1735452496544,8.76435926,195.1,195.03,79.08931904]
[1735452497331,0.96110047,195.1,195.03,79.08931904]
[1735452497534,23.77281941,195.11,195.02,10.17607685]
[1735452498652,23.77281941,195.11,195.03,97.07607685]
[1735452499023,7.7249,195.11,195.03,97.07607685]
[1735452499563,7.7249,195.11,195.03,86.9]
[1735452499725,8.68604065,195.11,195.03,86.9]
[1735452500753,24.73396006,195.11,195.03,86.9]
[1735452501534,8.68604065,195.11,195.03,86.9]
[1735452502355,24.73396006,195.11,195.03,86.9]
[1735452503728,24.73396006,195.11,195.0,97.07607685]
[1735452504456,16.04791941,195.09,195.0,97.07607685]
[1735452504635,17.00914125,195.09,195.01,10.17607685]
[1735452505747,0.96125227,195.08,195.01,10.17607685]
[1735452505949,16.04791941,195.09,195.01,10.17607685]
[1735452506674,0.96123095,195.08,195.01,97.07607685]
[1735452506873,17.0091601,195.09,195.01,97.07607685]
[1735452507473,17.0091601,195.09,195.02,10.17607685]
[1735452507675,16.04791941,195.09,195.03,10.17607685]
[1735452507879,16.04791941,195.1,195.03,10.17607685]
[1735452508381,17.00905634,195.1,195.03,10.17607685]
[1735452508675,16.04791941,195.1,195.05,10.17607685]
[1735452509175,16.04791941,195.1,195.01,86.9]
[1735452509351,20.57317255,195.1,195.01,86.9]
[1735452509552,20.57317255,195.1,195.04,10.17607685]
[1735452509752,20.57317255,195.1,195.04,97.07607685]
[1735452509973,17.00904396,195.1,195.04,97.07607685]
[1735452512794,17.00904396,195.1,194.97,20.0]
[1735452512964,17.00904396,195.1,195.03,10.17607685]
[1735452513893,16.04791941,195.09,195.03,10.17607685]
[1735452514672,16.04791941,195.09,194.99,0.46065431]
[1735452514673,19.61357536,195.09,195.04,10.17607685]
[1735452515497,19.61357536,195.09,195.05,10.17607685]
[1735452515861,17.00904396,195.1,195.05,10.17607685]
[1735452517501,16.04791941,195.1,195.06,10.17607685]
[1735452518283,23.77281941,195.11,195.06,10.17607685]
[1735452518673,23.77281941,195.11,195.07,10.17607685]
[1735452519791,23.77281941,195.11,195.06,10.17607685]
[1735452519994,24.73388133,195.11,195.06,10.17607685]
[1735452522214,24.73388133,195.11,195.02,86.9]
[1735452522401,24.73388133,195.11,195.06,10.17607685]
[1735452523603,24.73388133,195.11,195.05,10.17607685]
[1735452525215,23.77281941,195.11,195.05,10.17607685]
[1735452526407,16.04791941,195.11,195.09,10.17607685]
[1735452527209,19.6139862,195.14,195.09,10.17607685]
[1735452527509,19.6139862,195.14,195.1,10.17607685]
[1735452527903,16.04791941,195.14,195.1,10.17607685]
[1735452528285,16.04791941,195.14,195.11,10.17607685]
[1735452528481,48.31488133,195.15,195.11,10.17607685]
[1735452528981,32.26696192,195.15,195.11,10.17607685]
[1735452529187,32.36756643,195.15,195.11,10.17607685]
[1735452529682,0.10060451,195.15,195.12,10.17607685]
[1735452531184,0.10060451,195.15,195.13,10.17607685]
[1735452533810,0.10060451,195.15,195.12,10.17607685]
[1735452534598,0.10060451,195.15,195.13,10.17607685]
[1735452535307,0.10060451,195.15,195.12,10.17607685]
[1735452536907,0.10060451,195.15,195.12,97.07607685]
[1735452538607,0.10060451,195.15,195.14,97.07607685]
[1735452538810,0.10060451,195.15,195.14,120.85296085]
[1735452540412,48.31488133,195.28,195.19,23.776884]
[1735452540607,48.31488133,195.28,195.2,0.45849625]
[1735452540805,48.31488133,195.28,195.21,10.17607685]
[1735452541205,7.8293,195.3,195.22,96.87547234]
[1735452541591,0.96017674,195.29,195.22,86.69939549]
[1735452542218,8.78951681,195.3,195.22,86.69939549]
[1735452542517,8.78951681,195.3,195.22,96.87547234]
[1735452543013,7.8293,195.3,195.24,10.17607685]
[1735452543211,7.8293,195.3,195.24,96.87547234]
[1735452545616,1.5366,195.3,195.24,96.87547234]
[1735452546006,1.5366,195.3,195.25,10.17607685]
[1735452546197,42.16640449,195.33,195.25,96.87547234]
[1735452547021,42.16640449,195.33,195.25,86.69939549]
[1735452547926,42.16640449,195.33,195.25,87.15750466]
[1735452548291,0.96000095,195.32,195.25,86.69939549]
[1735452551832,0.96000095,195.32,195.2,96.87547234]
[1735452552509,0.96000095,195.32,195.2,86.69939549]
[1735452553422,20.0,195.3,195.2,86.69939549]
[1735452553616,0.96031384,195.29,195.2,86.69939549]
[1735452557638,20.96025559,195.3,195.21,10.17607685]
[1735452557847,20.96025559,195.3,195.21,96.87547234]
[1735452558018,20.96025559,195.3,195.21,86.69939549]
[1735452562344,1.6625,195.31,195.24,96.87547234]
[1735452562522,42.16640449,195.33,195.25,0.45823986]
[1735452563724,42.16640449,195.33,195.25,10.63431671]
[1735452564024,6.2927,195.35,195.25,97.3337122]
[1735452564225,7.25264363,195.35,195.25,96.87547234]
[1735452565351,7.25264363,195.35,195.25,86.69939549]
[1735452567731,20.0,195.32,195.25,86.69939549]
[1735452567931,0.96020225,195.31,195.2,96.87547234]
[1735452568128,0.96020225,195.31,195.2,86.69939549]
[1735452570450,1.5748,195.3,195.2,86.69939549]
[1735452570745,0.96038276,195.29,195.2,86.69939549]
[1735452574027,7.09568276,195.29,195.2,86.69939549]
[1735452575853,7.09568276,195.29,195.18,106.69939549]
[1735452576567,7.09568276,195.29,195.18,116.87547234]
[1735452577847,7.09568276,195.29,195.18,106.69939549]
[1735452583149,23.776884,195.28,195.14,90.91179549]
[1735452583337,0.96052401,195.27,195.17,20.0]
[1735452583738,0.96052401,195.27,195.14,90.91179549]
[1735452583739,20.0,195.25,195.14,86.69939549]
[1735452583939,0.96055233,195.24,195.14,86.69939549]
[1735452584759,20.96055233,195.24,195.14,86.69939549]
[1735452586246,22.47855233,195.24,195.14,86.69939549]
[1735452587544,6.3174,195.22,195.11,86.69939549]
[1735452587761,0.96076373,195.21,195.11,86.69939549]
[1735452587957,6.3174,195.22,195.11,86.69939549]
[1735452588262,0.96084069,195.21,195.07,96.87547234]
[1735452588765,0.96084069,195.21,195.1,20.0]
[1735452589750,17.0087601,195.21,195.1,20.0]
[1735452592762,0.96084069,195.21,195.1,20.0]
[1735452592971,20.0,195.19,195.07,96.87547234]
[1735452593153,0.96089165,195.18,195.07,96.87547234]
[1735452597366,0.96089165,195.18,195.07,86.69939549]
[1735452598948,2.47039165,195.18,195.07,86.69939549]
[1735452600180,23.776884,195.17,195.04,101.08787234]
[1735452600480,0.96107232,195.16,195.04,90.91179549]
[1735452603382,0.96107232,195.16,195.04,86.69939549]
[1735452605657,20.96105155,195.15,195.04,86.69939549]
[1735452607090,27.45245155,195.15,195.04,86.69939549]
[1735452614768,23.776884,195.14,195.04,86.69939549]
[1735452614973,0.96114951,195.13,195.01,86.69939549]
[1735452615987,0.96124385,195.12,195.01,86.69939549]
[1735452616593,20.0,195.11,195.01,86.69939549]
[1735452616891,0.96123834,195.1,195.01,86.69939549]
[1735452617668,0.9611918,195.13,195.01,86.69939549]
[1735452617861,0.9611918,195.13,195.01,96.87547234]
[1735452619788,0.9611918,195.13,195.01,86.69939549]
[1735452621285,20.0,195.11,195.01,86.69939549]
[1735452621472,0.96121523,195.1,195.01,86.69939549]
[1735452629512,20.96121523,195.1,195.01,86.69939549]
[1735452629894,20.96121523,195.1,194.96,96.87547234]
[1735452630198,20.96121523,195.1,194.99,20.0]
[1735452631294,43.776884,195.09,194.99,106.69939549]
[1735452631514,0.96144312,195.08,194.99,86.69939549]
[1735452632382,23.776884,195.07,194.99,86.69939549]
[1735452632585,23.776884,195.05,194.93,87.46857059]
[1735452632806,0.96163887,195.04,194.93,86.69939549]
[1735452633487,0.96163887,195.04,194.93,97.64475824]
[1735452633682,0.96149672,195.05,194.97,20.0]
[1735452633887,1.5606,195.06,194.98,0.76916412]
[1735452634383,1.5606,195.06,194.97,20.0]
[1735452635185,2.52197238,195.06,194.97,20.7690979]
[1735452635383,1.5606,195.06,194.97,20.7690979]
[1735452636719,0.96137064,195.08,194.97,20.7690979]
[1735452638903,0.96137064,195.08,194.97,107.46849339]
[1735452639103,0.96137064,195.08,194.97,106.69939549]
[1735452641704,0.96132406,195.09,194.98,34.72202009]
[1735452641909,0.96132406,195.09,194.98,121.42141558]
[1735452642108,0.96132406,195.09,194.98,120.65235634]
[1735452642409,0.96132406,195.09,194.99,87.46836448]
[1735452642924,0.96121686,195.1,194.99,87.46836448]
[1735452643426,0.96121686,195.1,195.0,23.776884]
[1735452644046,0.96121686,195.1,194.99,86.69939549]
[1735452644723,8.99115486,195.1,194.99,86.69939549]
[1735452647020,8.029938,195.09,194.99,86.69939549]
[1735452647320,0.96140071,195.08,194.99,86.69939549]
[1735452652626,8.99133871,195.08,194.99,86.69939549]
[1735452655832,23.776884,195.07,194.95,87.46851142]
[1735452656014,0.96151843,195.06,194.95,86.69939549]
[1735452657146,8.99145643,195.06,194.95,86.69939549]
[1735452658234,23.776884,195.05,194.95,86.69939549]
[1735452658436,8.99145643,195.06,194.95,86.69939549]
[1735452658437,0.96158606,195.04,194.95,86.69939549]
[1735452659432,0.96159406,195.03,194.95,86.69939549]
[1735452659636,20.0,195.04,194.95,86.69939549]
[1735452659828,0.96158362,195.03,194.95,86.69939549]
[1735452663621,9.598038,195.04,194.96,24.54617918]
[1735452663622,8.029938,195.04,194.96,24.54617918]
[1735452663941,8.029938,195.04,194.96,34.72225603]
[1735452664431,8.029938,195.04,194.96,121.42165152]
[1735452664636,8.029938,195.06,194.96,120.65235634]
[1735452665337,8.99131342,195.07,194.96,120.65235634]
[1735452665636,8.99131342,195.07,194.96,110.47627949]
[1735452668120,8.99131342,195.07,194.97,0.76910084]
[1735452668317,8.029938,195.07,194.99,86.69939549]
[1735452668541,8.029938,195.07,195.0,87.46836104]
[1735452669051,8.029938,195.09,195.0,87.46836104]
[1735452669948,8.029938,195.1,195.0,87.46836104]
[1735452671072,0.96115725,195.09,195.0,87.46836104]
[1735452672261,0.96115725,195.09,195.0,86.69939549]
[1735452673062,8.029938,195.08,195.0,86.69939549]
[1735452673258,0.96126628,195.07,195.0,86.69939549]
[1735452673562,8.029938,195.08,195.0,86.69939549]
[1735452674968,8.99123322,195.09,195.0,86.69939549]
[1735452676933,8.029938,195.08,195.0,87.46845967]
[1735452677853,8.99111353,195.08,195.0,87.46845967]
[1735452678248,8.99111353,195.08,195.0,86.69939549]
[1735452678939,8.029938,195.08,195.0,86.69939549]
[1735452683371,8.991211,195.09,195.0,86.69939549]
[1735452683541,8.029938,195.09,195.01,0.76896135]
[1735452684270,8.029938,195.1,195.01,87.46835684]
[1735452686949,8.029938,195.1,195.02,23.776884]
[1735452687149,8.029938,195.1,195.04,110.47627949]
[1735452687350,8.029938,195.1,195.05,0.76876624]
[1735452688147,8.029938,195.13,195.05,0.76876624]
[1735452688973,9.598038,195.14,195.05,87.46816173]
[1735452689459,8.029938,195.14,195.05,87.46816173]
[1735452689960,8.029938,195.15,195.05,87.46816173]
[1735452690647,47.75773463,195.16,195.05,87.46816173]
[1735452691875,15.49077271,195.16,195.05,87.46816173]
[1735452692565,14.529838,195.16,195.05,87.46816173]
[1735452693680,8.029938,195.16,195.06,120.65235634]
[1735452693974,8.029938,195.16,195.07,0.76858176]
[1735452694274,8.029938,195.17,195.07,0.76858176]
[1735452694975,8.029938,195.17,195.07,87.46797725]
[1735452696666,8.029938,195.18,195.07,87.46797725]
[1735452697091,8.029938,195.18,195.08,23.776884]
[1735452697267,8.029938,195.18,195.09,87.46790739]
[1735452697969,8.029938,195.18,195.1,23.776884]
[1735452698169,8.029938,195.18,195.12,23.776884]
[1735452699281,6.4999,195.21,195.12,23.776884]
[1735452699578,6.4999,195.21,195.12,24.54533349]
[1735452702094,6.4999,195.21,195.12,111.24472898]
[1735452702387,6.4999,195.21,195.12,110.47627949]
[1735452702887,6.4999,195.21,195.13,0.76845476]
[1735452705085,6.4999,195.21,195.13,87.46785025]
[1735452706612,0.96057012,195.23,195.13,87.46785025]
[1735452706794,81.62794517,195.25,195.13,87.46785025]
[1735452708208,20.96054037,195.25,195.13,87.46785025]
[1735452708392,20.0,195.25,195.14,23.776884]
[1735452708703,20.0,195.25,195.15,0.7683379]
[1735452710811,20.0,195.26,195.15,87.46773339]
[1735452710993,0.96043193,195.25,195.15,87.46773339]
[1735452711813,20.96043193,195.25,195.15,87.46773339]
[1735452712412,0.96043193,195.25,195.15,87.46773339]
[1735452725715,0.96042833,195.28,195.17,23.776884]
[1735452725917,10.53232909,195.29,195.18,0.76823287]
[1735452726649,10.53232909,195.29,195.18,87.46762836]
[1735452726919,2.50239109,195.29,195.18,87.46762836]
[1735452734433,20.0,195.27,195.18,87.46762836]
[1735452734599,20.0,195.25,195.18,86.69939549]
[1735452734802,0.96054714,195.24,195.18,86.69939549]
[1735452735418,0.96054714,195.24,195.11,87.467837]
[1735452735419,1.5045,195.23,195.11,87.467837]
[1735452735717,0.96059397,195.22,195.11,87.467837]
[1735452736121,43.776884,195.21,195.11,87.467837]
[1735452736298,20.96088276,195.2,195.11,86.69939549]
[1735452737020,20.0,195.19,195.11,86.69939549]
[1735452737205,0.96089199,195.18,195.11,86.69939549]
[1735452742405,8.99072746,195.2,195.11,86.69939549]
[1735452742911,0.96078946,195.2,195.11,86.69939549]
[1735452743214,20.0,195.19,195.11,86.69939549]
[1735452743924,20.96078946,195.2,195.11,86.69939549]
[1735452752746,20.96078946,195.2,195.05,82.2]
[1735452752747,43.776884,195.19,195.05,86.69939549]
[1735452752912,23.776884,195.17,195.05,86.69939549]
[1735452753113,0.96099182,195.16,195.05,86.69939549]
[1735452753414,8.99092982,195.16,195.05,86.69939549]
[1735452755544,8.029938,195.13,195.05,86.69939549]
[1735452756142,8.99094217,195.14,195.05,86.69939549]
[1735452756914,0.96100417,195.14,195.05,86.69939549]
[1735452757926,0.9610385,195.13,195.05,86.69939549]
[1735452758225,0.96103585,195.15,195.05,86.69939549]
[1735452761545,20.0,195.14,195.05,86.69939549]
[1735452761842,0.96103465,195.13,195.05,86.69939549]
[1735452765630,0.96103465,195.13,195.02,86.69939549]
[1735452765821,1.6129,195.12,195.02,86.69939549]
[1735452766027,0.96126853,195.11,195.02,86.69939549]
[1735452767429,0.96120205,195.13,195.05,106.69939549]
[1735452767639,8.99086989,195.16,195.06,0.76874551]
[1735452768634,0.96093189,195.16,195.06,0.76874551]
[1735452771025,2.57376731,195.17,195.06,0.76874551]
[1735452771341,2.57376731,195.17,195.06,87.468141]
[1735452773754,2.57376731,195.17,195.06,86.69939549]
[1735452774658,2.57376731,195.17,195.06,87.46816905]
[1735452777544,2.57376731,195.17,195.06,86.69939549]
[1735452777857,20.0,195.15,195.06,86.69939549]
[1735452778047,0.96108335,195.14,195.06,86.69939549]
[1735452779050,23.776884,195.13,195.02,86.69939549]
[1735452779254,0.96122435,195.12,195.02,86.69939549]
[1735452779640,0.96106941,195.16,195.03,0.76892649]
[1735452779956,20.0,195.13,195.03,0.76892649]
[1735452780129,0.96107135,195.12,195.03,0.76892649]
[1735452781061,0.96107816,195.13,195.03,0.76892649]
[1735452782452,0.96107816,195.13,195.02,86.69939549]
[1735452782972,0.96107816,195.13,195.02,87.46826782]
[1735452783282,20.96107816,195.13,195.02,87.46826782]
[1735452786185,0.96107816,195.13,195.02,87.46826782]
[1735452786984,20.96107816,195.13,195.02,87.46826782]
[1735452793990,20.96107816,195.13,195.02,86.69939549]
[1735452795594,28.99101616,195.13,195.02,86.69939549]
[1735452798904,28.99101616,195.13,195.03,0.76887331]
[1735452801097,7.9659,195.12,195.03,87.4682688]
[1735452801284,0.96118838,195.11,195.03,86.69939549]
[1735452801981,8.99112638,195.11,195.03,86.69939549]
[1735452802764,8.029938,195.1,195.03,86.69939549]
[1735452803308,8.029938,195.1,195.03,87.46826642]
[1735452803596,8.029938,195.11,195.03,87.46826642]
[1735452804206,9.626938,195.12,195.03,87.46826642]
[1735452805504,8.029938,195.12,195.03,87.46826642]
[1735452806775,0.96100274,195.11,195.03,86.69939549]
[1735452806975,8.99094074,195.11,195.03,86.69939549]
[1735452808082,8.029938,195.1,195.03,86.69939549]
[1735452808281,0.96122766,195.09,195.03,86.69939549]
[1735452808708,8.99116566,195.09,195.03,86.69939549]
[1735452816014,0.96122766,195.09,195.03,86.69939549]
[1735452817816,8.029938,195.1,195.03,86.69939549]
[1735452817817,8.99116658,195.1,195.03,86.69939549]
[1735452818122,8.029938,195.1,195.03,86.69939549]
[1735452823521,17.00906352,195.11,195.03,86.69939549]
[1735452823522,8.99108211,195.11,195.03,86.69939549]
[1735452824318,8.029938,195.1,195.03,86.69939549]
[1735452827512,8.029938,195.1,195.06,20.0]
[1735452828312,8.029938,195.1,195.06,106.69939549]
[1735452828495,8.029938,195.14,195.07,111.24500391]
[1735452828694,8.029938,195.14,195.1,20.0]
[1735452829008,8.029938,195.14,195.1,106.69939549]
[1735452829205,8.029938,195.17,195.1,106.69939549]
[1735452832330,1.6369,195.18,195.1,106.69939549]
[1735452832331,9.666838,195.18,195.1,106.69939549]
[1735452833126,1.6369,195.18,195.1,106.69939549]
[1735452841428,8.9906658,195.21,195.11,0.76858224]
[1735452842129,0.9607278,195.21,195.11,0.76858224]
[1735452842439,0.96061227,195.22,195.11,87.46797773]
[1735452846834,20.96061227,195.22,195.11,87.46797773]
[1735452861247,20.96061227,195.22,195.11,86.69939549]
[1735452869553,20.96061227,195.22,195.11,87.46795732]
[1735452874154,28.99055027,195.22,195.11,87.46795732]
[1735452876856,8.029938,195.21,195.11,87.46795732]
[1735452877255,8.99056722,195.21,195.11,87.46795732]
[1735452879057,8.029938,195.2,195.11,87.46795732]
[1735452880155,8.029938,195.19,195.11,87.46795732]
[1735452882559,8.99061563,195.19,195.11,86.69939549]
[1735452882931,8.029938,195.18,195.11,86.69939549]
[1735452888958,8.99064681,195.18,195.11,86.69939549]
[1735452889144,8.99064681,195.18,195.12,3.84232429]
[1735452890086,8.029938,195.16,195.11,86.69939549]
[1735452890357,8.99079484,195.16,195.11,86.69939549]
[1735452891164,8.029938,195.16,195.11,86.69939549]
[1735452891961,8.029938,195.15,195.11,86.69939549]
[1735452892132,8.029938,195.15,195.09,20.0]
[1735452892635,8.99086717,195.15,195.09,20.0]
[1735452893259,8.99086717,195.15,195.07,0.76874334]
[1735452893465,8.99086717,195.15,195.06,86.69939549]
[1735452895358,8.029938,195.14,195.06,86.69939549]
[1735452895532,0.96104912,195.13,195.06,86.69939549]
[1735452896062,8.99098712,195.13,195.06,86.69939549]
[1735452896665,8.029938,195.12,195.06,86.69939549]
[1735452897536,8.99098712,195.13,195.06,86.69939549]
[1735452901167,15.50998712,195.13,195.06,86.69939549]
[1735452901469,1.6559,195.12,195.06,86.69939549]
[1735452901638,0.96121876,195.11,195.0,87.46833772]
[1735452903454,8.029938,195.1,195.01,10.17607685]
[1735452903655,8.029938,195.1,195.02,0.7688746]
[1735452904375,8.99115676,195.11,195.02,0.7688746]
[1735452905569,0.96121876,195.11,195.02,0.7688746]
[1735452906370,0.96121876,195.11,195.0,86.69939549]
[1735452906574,0.96121876,195.11,195.0,87.46832284]
[1735452907758,0.96121876,195.11,195.0,97.64439969]
[1735452907956,0.96121876,195.11,195.0,96.87547234]
[1735452908157,0.96121876,195.11,195.01,0.76888399]
[1735452909480,0.96121876,195.11,195.01,87.46827948]
[1735452917881,1.6559,195.12,195.02,33.95296085]
[1735452918088,1.6559,195.12,195.05,106.69939549]
[1735452919163,1.6559,195.12,195.05,86.69939549]
[1735452919482,2.61693705,195.12,195.05,86.69939549]
[1735452920486,1.6559,195.12,195.05,86.69939549]
[1735452921258,2.61692293,195.12,195.05,86.69939549]
[1735452922383,1.6559,195.12,195.05,86.69939549]
[1735452923572,0.96101463,195.11,195.05,86.69939549]
[1735452924783,2.61700088,195.12,195.05,86.69939549]
[1735452941611,10.64693888,195.12,195.05,86.69939549]
[1735452943015,8.029938,195.11,195.05,86.69939549]
[1735452946110,8.029938,195.1,195.05,86.69939549]
[1735452950594,8.029938,195.1,195.05,87.46827493]
[1735452950794,8.029938,195.1,195.08,20.0]
[1735452951017,8.029938,195.1,195.08,106.69939549]
[1735452951420,8.029938,195.12,195.08,106.69939549]
[1735452952222,8.029938,195.13,195.08,106.69939549]
[1735452954300,8.029938,195.14,195.08,106.69939549]
[1735452955119,8.029938,195.16,195.08,106.69939549]
[1735452955420,8.029938,195.16,195.09,0.76865087]
[1735452957122,40.29689992,195.17,195.09,0.76865087]
[1735452957527,8.029938,195.17,195.09,0.76865087]
[1735452959013,8.99073423,195.17,195.08,106.69939549]
[1735452959940,8.029938,195.15,195.08,106.69939549]
[1735452960107,8.99085155,195.15,195.08,106.69939549]
[1735452960533,8.029938,195.15,195.08,106.69939549]
[1735452961331,8.029938,195.15,195.08,86.69939549]
[1735452964045,0.96088837,195.14,195.08,86.69939549]
[1735452968651,8.99082637,195.14,195.08,86.69939549]
[1735452970527,8.029938,195.14,195.08,86.69939549]
[1735452973651,8.029938,195.14,195.08,87.46806105]
[1735452974362,8.029938,195.15,195.08,87.46806105]
[1735452974849,8.029938,195.15,195.08,86.69939549]
[1735452975721,8.029938,195.14,195.08,86.69939549]
[1735452978056,8.99082726,195.14,195.08,86.69939549]
[1735452978756,8.029938,195.14,195.08,86.69939549]
[1735452982652,8.9908913,195.15,195.08,86.69939549]
[1735452984758,8.029938,195.14,195.08,86.69939549]
[1735452985254,8.9908913,195.15,195.08,86.69939549]
[1735452985555,8.029938,195.15,195.08,86.69939549]
[1735452985756,8.029938,195.15,195.08,87.46804128]
[1735452987468,8.029938,195.15,195.09,23.776884]
[1735452987630,8.029938,195.15,195.12,86.69939549]
[1735452988042,8.029938,195.17,195.12,86.69939549]
[1735452988766,8.029938,195.18,195.12,86.69939549]
[1735452991463,9.628238,195.2,195.12,86.69939549]
[1735452994663,1.5983,195.2,195.12,86.69939549]
[1735452997367,2.55893641,195.2,195.12,86.69939549]
[1735452997545,1.5983,195.2,195.12,86.69939549]
[1735452999264,0.96065614,195.19,195.12,86.69939549]
[1735452999966,8.99059414,195.19,195.12,86.69939549]
[1735453002570,8.029938,195.19,195.12,86.69939549]
[1735453003073,0.96068219,195.19,195.12,86.69939549]
[1735453003975,10.58894613,195.2,195.12,86.69939549]
[1735453005056,9.628238,195.2,195.12,86.69939549]
[1735453006275,0.96068117,195.19,195.12,86.69939549]
[1735453006479,10.5889364,195.2,195.12,86.69939549]
[1735453007476,9.628238,195.2,195.12,86.69939549]
[1735453008061,8.029938,195.2,195.12,86.69939549]
[1735453008364,8.029938,195.2,195.12,87.46786779]
[1735453009581,8.029938,195.21,195.12,87.46786779]
[1735453012280,8.029938,195.2,195.12,87.46786779]
[1735453012777,8.029938,195.21,195.12,87.46786779]
[1735453026084,0.96062446,195.2,195.12,87.46786779]
[1735453026393,8.99059271,195.21,195.12,87.46786779]
[1735453030295,8.99059271,195.21,195.12,86.69939549]
[1735453030599,23.776884,195.2,195.12,86.69939549]
[1735453030893,10.62119412,195.19,195.12,86.69939549]
[1735453031496,8.029938,195.17,195.12,86.69939549]
[1735453031695,0.96084859,195.16,195.12,86.69939549]
[1735453031995,8.99078659,195.16,195.12,86.69939549]
[1735453037405,8.029938,195.15,195.12,86.69939549]
[1735453037576,0.96098377,195.14,195.12,86.69939549]
[1735453040299,8.029938,195.13,195.12,86.69939549]
[1735453041705,8.029938,195.13,195.04,86.69939549]
[1735453041890,0.96106883,195.12,195.04,86.69939549]
[1735453042690,0.96107057,195.13,195.04,86.69939549]
[1735453043874,8.99100857,195.13,195.04,86.69939549]
[1735453045510,0.96107057,195.13,195.04,86.69939549]
[1735453051935,0.96107809,195.12,195.04,86.69939549]
[1735453052120,0.96107828,195.14,195.04,86.69939549]
[1735453054297,2.54627828,195.14,195.04,86.69939549]
[1735453055035,8.029938,195.13,195.04,86.69939549]
[1735453055198,0.96115928,195.12,195.04,86.69939549]
[1735453059221,0.96115516,195.11,195.04,86.69939549]
[1735453059504,8.99109305,195.13,195.04,86.69939549]
[1735453059911,0.96115505,195.13,195.04,86.69939549]
[1735453067826,23.776884,195.12,195.04,86.69939549]
[1735453068030,0.96119264,195.11,195.04,86.69939549]
[1735453068229,0.96113271,195.13,195.04,86.69939549]
[1735453068835,8.99107071,195.13,195.04,86.69939549]
[1735453074862,8.029938,195.12,195.04,86.69939549]
[1735453075148,0.96110441,195.11,195.04,86.69939549]
[1735453075311,8.99103328,195.12,195.04,86.69939549]
[1735453075515,8.029938,195.12,195.04,86.69939549]
[1735453076254,8.99102758,195.13,195.04,86.69939549]
[1735453076958,8.029938,195.12,195.04,86.69939549]
[1735453077745,8.029938,195.12,195.05,0.76883953]
[1735453078052,8.029938,195.12,195.05,87.46823502]
[1735453078850,0.96094048,195.14,195.05,87.46823502]
[1735453080753,8.99087848,195.14,195.05,87.46823502]
[1735453082029,8.99087848,195.14,195.05,86.69939549]
[1735453082849,8.029938,195.11,195.05,86.69939549]
[1735453088472,20.0,195.07,195.02,86.69939549]
[1735453088761,0.96133565,195.06,195.02,86.69939549]
[1735453089270,8.029938,195.05,195.02,86.69939549]
[1735453092664,8.99127365,195.06,195.02,86.69939549]
[1735453093952,8.029938,195.06,195.02,86.69939549]
[1735453094952,8.029938,195.07,195.02,86.69939549]
[1735453095962,8.029938,195.08,195.02,86.69939549]
[1735453097061,0.961232,195.07,195.02,86.69939549]
[1735453098162,8.99123148,195.08,195.02,86.69939549]
[1735453098755,8.029938,195.08,195.02,86.69939549]
[1735453103757,8.029938,195.09,195.02,86.69939549]
[1735453106068,8.029938,195.09,195.02,87.46826074]
[1735453108479,8.029938,195.1,195.02,87.46826074]
[1735453110480,8.029938,195.1,195.03,23.776884]
[1735453110691,8.029938,195.1,195.07,86.69939549]
[1735453110988,8.029938,195.1,195.07,87.46806389]
[1735453111782,8.029938,195.15,195.07,87.46806389]
[1735453112190,8.029938,195.15,195.08,110.47627949]
[1735453112397,8.029938,195.15,195.09,0.76854449]
[1735453113510,7.46357006,195.2,195.09,87.46793998]
[1735453113511,15.49350806,195.2,195.09,87.46793998]
[1735453114107,8.029938,195.19,195.09,87.46793998]
[1735453115209,15.49350806,195.2,195.09,87.46793998]
[1735453116007,7.46357006,195.2,195.09,87.46793998]
[1735453119907,0.96071206,195.19,195.09,87.46793998]
[1735453121210,0.96071206,195.19,195.09,97.02907798]
[1735453121412,0.96071206,195.19,195.09,96.26053349]
[1735453121612,6.5028,195.2,195.09,96.26053349]
[1735453121805,0.96068367,195.19,195.09,96.26053349]
[1735453122809,7.46351281,195.2,195.1,0.76855864]
[1735453122992,7.46351281,195.2,195.1,87.46795413]
[1735453123811,0.9607049,195.19,195.1,87.46795413]
[1735453124420,6.5028,195.2,195.1,87.46795413]
[1735453124605,0.9606906,195.19,195.1,87.46795413]